{"text_format":"1","workbook":"xlsx","n_sheets":14,"sheets":["1. Forside","2. Samlet prisloft","3. Driftsomkostninger","4. Historiske investeringer","5. Gennemførte investeringer","6. Korrektion investeringer","7. Planlagte investeringer","8. 1-1 omkostninger","9. Miljø- og servicemål","10. Klimatilpasning","11. Nettofinansielle poster","12. Over- eller underdækning","13. Kontrol med indtægtsrammen","Ark1"],"not_rendered":{"charts":0,"images":0,"macros":1,"external_links":0,"defined_names":0,"comments":0,"pivot_tables":0},"unopened":[],"bounds":{"document_bytes":16777216,"sheet_cells":100000,"rows_first":2000,"rows_last":500,"rows_between":2000,"halvings":0,"cell_chars":16384,"cell_head_chars":4096},"cells_cut":0,"cells_raw":0,"read":"whole","date_system":"1900"}

{"sheet":"1. Forside","index":0,"n_rows":27,"n_cols":4,"rows_kept":27,"cut":false,"hidden":false,"merged":[[26,3,26,5],[25,3,25,5],[24,3,24,5],[23,3,23,5],[22,3,22,5],[21,3,21,5],[20,3,20,5],[19,3,19,5],[18,3,18,5],[7,3,7,5],[12,3,12,5],[15,3,15,5],[16,3,16,5],[17,3,17,5]]}
["Arwos Spildevand A/S"]
[]
[]
[]
[]
[]
[]
[null,null,null,"Bilag A"]
[]
[]
[]
[]
[null,null,null,"Indholdsfortegnelse"]
[]
[]
[null,null,"Fane nr. 2","Samlet prisloft "]
[null,null,"Fane nr. 3","Driftsomkostninger"]
[null,null,"Fane nr. 4","Historiske investeringer "]
[null,null,"Fane nr. 5","Gennemførte investeringer"]
[null,null,"Fane nr. 6","Korrektion investeringer"]
[null,null,"Fane nr. 7","Planlagte investeringer"]
[null,null,"Fane nr. 8","1:1 omkostninger"]
[null,null,"Fane nr. 9","Miljø- og servicemål"]
[null,null,"Fane nr. 10","Klimatilpasning"]
[null,null,"Fane nr. 11","Nettofinansielle poster"]
[null,null,"Fane nr. 12","Over- eller underdækning"]
[null,null,"Fane nr. 13","Kontrol med indtægtsrammen og oversigt over ekstraordinære effektiviseringsgevinster"]

{"sheet":"2. Samlet prisloft","index":1,"n_rows":38,"n_cols":6,"rows_kept":38,"cut":false,"hidden":false,"merged":[[3,1,3,5]]}
[{"$f":"'1. Forside'!A1","v":"Arwos Spildevand A/S"}]
[]
[]
[null,"Fane 2. Samlet prisloft for 2015"]
[]
[null,"Driftsomkostninger"]
[null,"Driftsomkostninger i prisloftet for 2014",{"$f":"'3. Driftsomkostninger'!C20","v":48879696.024999999},"kr."]
[null,"Bortfald af væsentlige omkostninger",{"$f":"-'3. Driftsomkostninger'!C16","v":0},"kr."]
[null,"Korrektion for prisudviklingen 2014-2015",{"$f":"'3. Driftsomkostninger'!C22","v":39103.756820000002},"kr."]
[null,"Forhøjelse til effektivt niveau iht. benchmarkingen",{"$f":"'3. Driftsomkostninger'!C28","v":0},"kr."]
[null,"Korrektion for generelt effektiviseringskrav",{"$f":"-'3. Driftsomkostninger'!C34","v":-215070.66250999999},"kr."]
[null,"Korrektion for individuelt effektiviseringskrav",{"$f":"-'3. Driftsomkostninger'!C43","v":-2443984.80125},"kr."]
[null,"Driftsomkostninger i alt",{"$f":"SUM(C7:C12)","v":46259744.318059996},"kr.",{"$f":"C13","v":46259744.318059996}," kr."]
[null,"Investeringer"]
[null,"Tillæg for historiske investeringer",{"$f":"'4. Historiske investeringer'!C9","v":74068381.485295624},"kr."]
[null,"Tillæg for gennemførte investeringer i 2011-2013",{"$f":"'5. Gennemførte investeringer'!F38","v":5020124.2033333331},"kr."]
[null,"Korrektion af tillæg for planlagte investeringer vedrørende 2013  ",{"$f":"'6. Korrektion investeringer'!C10","v":3198918.9666666659},"kr."]
[null,"Tillæg for planlagte investeringer i 2014 og 2015",{"$f":"'7. Planlagte investeringer'!F31","v":2613773.333333333},"kr."]
[null,"Investeringstillæg i alt",{"$f":"SUM(C15:C18)","v":84901197.988628954},"kr.",{"$f":"C19","v":84901197.988628954}," kr."]
[null,"Øvrige omkostninger mv."]
[null,"Tillæg for 1:1 omkostninger i 2015",{"$f":"'8. 1-1 omkostninger'!C10","v":2153000},"kr."]
[null,"Tillæg vedr. revisorerklæringer og DANVA/FVD-kontingent",{"$f":"'8. 1-1 omkostninger'!C18","v":128000},"kr."]
[null,"Korrektion ift. faktiske 1:1 omkostninger i 2013",{"$f":"'8. 1-1 omkostninger'!C24","v":413904},"kr."]
[null,"Tillæg for driftsomkostninger til miljø- og servicemål i 2015",{"$f":"'9. Miljø- og servicemål'!C8","v":0},"kr."]
[null,"Korrektion ift. faktiske driftsomkostninger til miljø- og servicemål i 2013",{"$f":"'9. Miljø- og servicemål'!C15","v":0},"kr."]
[null,"Tillæg for driftsomkostninger til medfinansiering af klimatilpasningsprojekter i 2015",{"$f":"'10. Klimatilpasning'!C9","v":0},"kr."]
[null,"Korrektion ift. faktiske omkostninger til medfinansiering af klimatilpasningsprojekter i 2013",{"$f":"'10. Klimatilpasning'!C16","v":0},"kr."]
[null,"Tillæg/fradrag for nettofinansielle poster i 2015",{"$f":"'11. Nettofinansielle poster'!C9","v":2736000},"kr."]
[null,"Korrektion ift. faktiske nettofinansielle poster i 2013",{"$f":"'11. Nettofinansielle poster'!C16","v":1156270},"kr."]
[null,"Øvrige omkostninger mv. i alt",{"$f":"SUM(C21:C29)","v":6587174},"kr.",{"$f":"C30","v":6587174}," kr."]
[null,"Historisk over- eller underdækning"]
[null,"Tillæg/fradrag for over- eller underdækning til og med 2010",{"$f":"'12. Over- eller underdækning'!C11","v":0},"kr.",{"$f":"C32","v":0}," kr."]
[null,"Korrektion i forhold til tidligere indtægtsramme "]
[null,"Korrektion for overholdelse af indtægtsramme i prisloft 2013",{"$f":"'13. Kontrol med indtægtsrammen'!E27","v":42068894.063724995},"kr.",{"$f":"C34","v":42068894.063724995}," kr."]
[null,"Samlet prisloft"]
[null,"Indtægtsramme i 2015 ",null,null,{"$f":"SUM(E13:E34)","v":179817010.37041396}," kr."]
[null,"Debiteret vandmængde i 2013",null,null,2499826," m3"]
[null,"Prisloft 2015",null,null,{"$f":"E36/E37","v":71.931810602183489}," kr./m3"]

{"sheet":"3. Driftsomkostninger","index":2,"n_rows":43,"n_cols":4,"rows_kept":43,"cut":false,"hidden":false,"merged":[[3,1,3,3]]}
[{"$f":"'1. Forside'!A1","v":"Arwos Spildevand A/S"}]
[]
[]
[null,"Fane 3. Driftsomkostninger "]
[]
[null,"Driftsomkostningerne i prisloftet for 2014"]
[null,"Korrigerede driftsomkostninger i prisloftet for 2013 (DOiPL 2013)",50652535,"kr."]
[null,"Prisfremskrivning 1,5 pct.",{"$f":"0.015*SUM(C7:C7)","v":759788.02500000002},"kr."]
[null,"Generelt effektiviseringskrav (0 pct.)",0,"kr."]
[null,"Individuelt effektiviseringskrav ",-2532627,"kr."]
[null,"Driftsomkostningerne i prisloftet for 2014 (DOiPL 2014)",{"$f":"SUM(C7:C10)","v":48879696.024999999},"kr."]
[]
[]
[null,"Korrektion for forventet bortfald af væsentlige omkostninger"]
[null,"Selskabets indberettede bortfald af væsentlige omkostninger inden 2015",0,"kr."]
[null,"Korrektion for forventet bortfald ",{"$f":"SUM(C15:C15)","v":0},"kr."]
[]
[]
[null,"Korrektion for prisudviklingen fra 2014-2015"]
[null,"Driftsomkostningerne i prisloftet for 2014",{"$f":"C11-C16","v":48879696.024999999},"kr."]
[null,"Prisudvikling 2014 - 2015 ",0.08,"pct."]
[null,"Korrektion for prisudvikling",{"$f":"C20*(C21/100)","v":39103.756820000002},"kr."]
[]
[]
[null,"Eventuel forhøjelse til effektivt niveau iht. benchmarkingen"]
[null,"Selskabets effektive driftsomkostninger iht. benchmarkingen",26111533.654521663,"kr."]
[null,"Selskabets pristalskorrigerede driftsomkostninger i 2015-niveau",{"$f":"C20+C22","v":48918799.781819999},"kr."]
[null,"Eventuel forhøjelse til effektivt niveau",{"$f":"IF(C27>C26,0,C26-C27)","v":0},"kr."]
[]
[]
[null,"Korrektion for generelt effektiviseringskrav"]
[null,"Driftsomkostningerne i prisloftet for 2014",{"$f":"C20","v":48879696.024999999},"kr. "]
[null,"Generelt effektiviseringskrav ",0.44,"pct."]
[null,"Endeligt generelt effektiviseringskrav",{"$f":"C32*(C33/100)","v":215070.66250999999},"kr. "]
[]
[]
[null,"Korrektion for individuelt effektiviseringskrav"]
[null,"Rå effektiviseringspotentiale",22768162.441550341,"kr."]
[null,"Effektiviseringspotentiale efter eventuel korrektion for særlige forhold",22768162.441550341,"kr."]
[null,"Effektiviseringspotentiale efter forsigtighedshensyn",16267162.860772762,"kr."]
[null,"Effektiviseringspotentiale efter eventuel korrektion for sammensætning af signifikante costdrivere",16267162.860772762,"kr. "]
[null,"Umiddelbart effektiviseringskrav",{"$f":"C41/4","v":4066790.7151931906},"kr."]
[null,"Endeligt individuelt effektiviseringskrav",{"$f":"IF(C42>0.05*C20,0.05*C20,IF(C42<0.01*C20,0,C42))","v":2443984.80125},"kr. "]

{"sheet":"4. Historiske investeringer","index":3,"n_rows":9,"n_cols":4,"rows_kept":9,"cut":false,"hidden":false,"merged":[[3,1,3,2]]}
[{"$f":"'3. Driftsomkostninger'!A1","v":"Arwos Spildevand A/S"}]
[]
[]
[null,"Fane 4. Historiske investeringer "]
[]
[null,"Tillæg for historiske investeringer "]
[null,"Værdi af selskabets materielle anlægsaktiver pr. 1. januar 2010",3075755880.9071641,"kr."]
[null,"Den årlige standardafskrivning på de materielle anlægsaktiver iht. POLKA",74068381.485295624,"kr."]
[null,"Tillæg i alt i 2015",{"$f":"C8","v":74068381.485295624},"kr."]

{"sheet":"5. Gennemførte investeringer","index":4,"n_rows":38,"n_cols":7,"rows_kept":38,"cut":false,"hidden":false,"merged":[[3,1,3,5],[6,5,6,6]]}
[{"$f":"'4. Historiske investeringer'!A1","v":"Arwos Spildevand A/S"}]
[]
[]
[null,"Fane 5. Gennemførte investeringer i 2010 - 2013 "]
[]
[null,"Tillæg for gennemførte investeringer i 2013"]
[null," Beskrivelse af investeringen   ","Årstal ","Std. levetid (år)   "," Anskaffelses-pris (kr.)","Afskrivning "]
[null,"Brønde",2013,75,12370255,{"$f":"E8/D8","v":164936.73333333334},"kr."]
[null,"Forafvanding, slam, Mek/EL",2013,20,311243,{"$f":"E9/D9","v":15562.15},"kr."]
[null,"Forafvanding, slam, SRO",2013,10,68320,6832,"kr."]
[null,"Forklaring, SRO",2013,10,931369,93136.9,"kr."]
[null,"Installationer \"mekaniske riste og SRO\" Miljøklasse A. (7-20 m2) - Mek/EL",2013,20,129546,6477.3,"kr."]
[null,"Installationer \"mekaniske riste og SRO\" Miljøklasse A. (7-20 m2) - SRO",2013,10,45567,4556.7,"kr."]
[null,"Jordbassin Klasse A",2013,50,1793036,35860.720000000001,"kr."]
[null,"Ledningsnet = Ø 200 mm",2013,75,10817919,144238.92000000001,"kr."]
[null,"Pumpestationer i brønde (< 6,25 m2), Konstruktioner",2013,50,1800355,36007.1,"kr."]
[null,"Pumpestationer i brønde (< 6,25 m2), Mek/EL",2013,20,1475154,73757.7,"kr."]
[null,"Pumpestationer i brønde (< 6,25 m2), SRO",2013,10,119038,11903.8,"kr."]
[null,"Pumpestationer i underjordiske bygværker (",2013,20,440478,22023.9,"kr."]
[null,"Pumpestationer m. overbygning (< 20 m2), Mek/EL",2013,20,108721,5436.05,"kr."]
[null,"Sand- og fedtfang, Kontruktioner",2013,60,2363065,39384.416666666664,"kr."]
[null,"Slutafvanding, slam - højteknologisk (centrifuger), Mek/El",2013,20,1558268,77913.399999999994,"kr."]
[null,"Strømpeforing = Ø 200 mm",2013,50,434000,8680,"kr."]
[null,"Strømpeforing Ø 200 mm < Ledningsnet = Ø 500 mm",2013,50,4897110,97942.2,"kr."]
[null,"Strømpeforing Ø 500 mm < Ledningsnet = Ø 800 mm",2013,50,5991970,119839.4,"kr."]
[null,"Tryksatte minipumpestationer (husstandssystemer)",2013,30,89808,2993.6,"kr."]
[null,"Ø 200 mm < Ledningsnet = Ø 500 mm",2013,75,4717424,62898.986666666664,"kr."]
[null,"Ø 500 mm < Ledningsnet = Ø 800 mm",2013,75,1615996,21546.613333333335,"kr."]
[null,"Ø 800 mm < Ledningsnet = Ø 1000 mm",2013,75,7025857,93678.093333333338,"kr."]
[null,"Arbejdsplads",2013,5,125647,25129.4,"kr."]
[null,"Beluftningstanke, SRO",2013,10,86773,8677.2999999999993,"kr."]
[null,"Køretøjer, entreprenørmaskiner",2013,5,2745497,549099.4,"kr."]
[null,"Administrationbygninger",2013,75,49388700,658516,"kr."]
[null,"Brønde",2013,10,3357514,335751.4,"kr."]
[null,"Jordbassin Klasse A",2013,10,295128,29512.799999999999,"kr."]
[null,"Tillæg for 2013 ",null,null,null,{"$f":"SUM(F8:F35)","v":2752292.9833333329},"kr."]
[null,"Tillæg for 2010 - 2012",null,null,null,2267831.2199999997,"kr."]
[null,"Samlet tillæg for gennemførte investeringer",null,null,null,{"$f":"F36+F37","v":5020124.2033333331},"kr."]

{"sheet":"6. Korrektion investeringer","index":5,"n_rows":10,"n_cols":4,"rows_kept":10,"cut":false,"hidden":false,"merged":[[3,1,3,3]]}
[{"$f":"'5. Gennemførte investeringer'!A1","v":"Arwos Spildevand A/S"}]
[]
[]
[null,"Fane 6. Korrektion af tillæg for planlagte investeringer"]
[]
[null,"Korrektion af tillæg for planlagte investeringer vedr. 2013"]
[null,"Tillæg for planlagte investeringer i 2013 i prisloft 2013",916667,"kr."]
[null,"Tillæg for planlagte investeringer i 2013 i prisloft 2014",1389000,"kr."]
[null,"Selskabets faktiske afskrivninger på gennemførte investeringer i 2013",{"$f":"'5. Gennemførte investeringer'!F36","v":2752292.9833333329},"kr."]
[null,"Korrektion af tillæg for planlagte investeringer vedr. 2013",{"$f":"C9-C7+C9-C8","v":3198918.9666666659},"kr."]

{"sheet":"7. Planlagte investeringer","index":6,"n_rows":31,"n_cols":7,"rows_kept":31,"cut":false,"hidden":false,"merged":[[6,5,6,6],[3,1,3,6]]}
[{"$f":"'6. Korrektion investeringer'!A1","v":"Arwos Spildevand A/S"}]
[]
[]
[null,"Fane 7. Planlagte investeringer "]
[]
[null,"Tillæg for planlagte investeringer i 2014 og 2015"]
[null,"Beskrivelse af investeringen   ","Årstal ","Std. levetid (år)   ","Anskaffelses-pris (kr.)   ","Afskrivning"]
[null,"Indløb med riste, Mek/EL",2014,20,3150000,{"$f":"E8/D8","v":157500},"kr."]
[null,"Arbejdsplads",2014,5,1757000,{"$f":"E9/D9","v":351400},"kr."]
[null,"Indløb med riste, Konstruktioner",2014,60,1300000,{"$f":"E10/D10","v":21666.666666666668},"kr."]
[null,"Ø 200 mm < Ledningsnet = Ø 500 mm",2014,75,100000,1333.3333333333333,"kr."]
[null,"Ø 200 mm < Ledningsnet = Ø 500 mm",2014,75,1300000,17333.333333333332,"kr."]
[null,"Tryksatte minipumpestationer (husstandssystemer)",2014,30,1000000,33333.333333333336,"kr."]
[null,"Ø 200 mm < Ledningsnet = Ø 500 mm",2014,75,9525000,127000,"kr."]
[null,"Ø 500 mm < Ledningsnet = Ø 800 mm",2014,75,28818000,384240,"kr."]
[null,"Ø 200 mm < Ledningsnet = Ø 500 mm",2014,75,10900000,145333.33333333334,"kr."]
[null,"Pumpestationer i brønde (< 6,25 m2), Konstruktioner",2014,50,5165000,103300,"kr."]
[null,"Pumpestationer i brønde (< 6,25 m2), Konstruktioner",2014,50,4950000,99000,"kr."]
[null,"Ø 200 mm < Ledningsnet = Ø 500 mm",2015,75,500000,6666.666666666667,"kr."]
[null,"Ø 200 mm < Ledningsnet = Ø 500 mm",2015,75,500000,6666.666666666667,"kr."]
[null,"Tryksatte minipumpestationer (husstandssystemer)",2015,30,1000000,33333.333333333336,"kr."]
[null,"Ø 200 mm < Ledningsnet = Ø 500 mm",2015,75,13250000,176666.66666666666,"kr."]
[null,"Ø 500 mm < Ledningsnet = Ø 800 mm",2015,75,28500000,380000,"kr."]
[null,"Ø 200 mm < Ledningsnet = Ø 500 mm",2015,75,6600000,88000,"kr."]
[null,"Pumpestationer i brønde (< 6,25 m2), Konstruktioner",2015,50,9000000,180000,"kr."]
[null,"Pumpestationer i brønde (< 6,25 m2), Konstruktioner",2015,50,6800000,136000,"kr."]
[null,"Indløb med riste, Mek/EL",2015,20,1300000,65000,"kr."]
[null,"Arbejdsplads",2015,5,500000,100000,"kr."]
[null,"Tillæg for 2014",null,null,null,{"$f":"SUMIF(C8:C28,\"2014\",F8:F28)","v":1441440},"kr."]
[null,"Tillæg for 2015",null,null,null,{"$f":"SUMIF(C8:C28,\"2015\",F8:F28)","v":1172333.3333333333},"kr."]
[null,"Tillæg i alt",null,null,null,{"$f":"F29+F30","v":2613773.333333333},"kr."]

{"sheet":"8. 1-1 omkostninger","index":7,"n_rows":24,"n_cols":4,"rows_kept":24,"cut":false,"hidden":false,"merged":[[3,1,3,3],[14,1,14,3],[20,1,20,3]]}
[{"$f":"'7. Planlagte investeringer'!A1","v":"Arwos Spildevand A/S"}]
[]
[]
[null,"Fane 8. 1:1 omkostninger"]
[]
[null,"Tillæg for budgetterede 1:1 omkostninger i 2015"]
[null,"Betaling til Forsyningssekretariatet",33000,"kr."]
[null,"Spildevandsafgift",1800000,"kr."]
[null,"Ejendomsskatter",320000,"kr."]
[null,"Tillæg i alt ",{"$f":"SUM(C7:C9)","v":2153000},"kr."]
[]
[]
[]
[]
[null,"Tillæg for budgetterede nødvendige udgifter til revisorerklæringer samt ordinært medlemskab af DANVA og FVD i 2015"]
[null,"Betaling for ordinært medlemskab af DANVA/FVD",113000,"kr."]
[null,"Betaling for revisorerklæringer",15000,"kr."]
[null,"Tillæg i alt ",{"$f":"SUM(C16:C17)","v":128000},"kr."]
[]
[]
[null,"Korrektion af tillæg for faktiske 1:1 omkostninger (inkl. revisorerklæringer og ordinært medlemskab af DANVA/FVD) i 2013"]
[null,"Selskabets faktiske 1:1 omkostninger mv. i 2013, jf. reguleringsregnskabet",2332319,"kr."]
[null,"Tillæg for budgetterede 1:1 omkostninger mv. i prisloft 2013",1918415,"kr."]
[null,"Korrektion af tillæg for budgetterede 1:1 omkostninger mv. i 2013",{"$f":"C22-C23","v":413904},"kr."]

{"sheet":"9. Miljø- og servicemål","index":8,"n_rows":15,"n_cols":4,"rows_kept":15,"cut":false,"hidden":false,"merged":[[3,1,3,3]]}
[{"$f":"'8. 1-1 omkostninger'!A1","v":"Arwos Spildevand A/S"}]
[]
[]
[null,"Fane 9. Driftsomkostninger til miljø- og servicemål "]
[]
[null,"Tillæg for budgetterede driftsomkostninger til miljø- og servicemål i 2015"]
[null,null,0,"kr."]
[null,"Tillæg i alt",{"$f":"SUM(C7:C7)","v":0},"kr."]
[]
[]
[]
[null,"Korrektion af tillæg for faktiske driftsomkostninger til miljø- og servicemål i 2013"]
[null,"Selskabets faktiske driftsomkostninger til miljø- og servicemål i 2013, jf. reguleringsregnskabet",0,"kr."]
[null,"Tillæg for budgetterede driftsomkostninger til miljø- og servicemål i prisloft 2013",0,"kr."]
[null,"Korrektion af tillæg for budgetterede driftsomkostninger til miljø- og servicemål i 2013",{"$f":"C13-C14","v":0},"kr."]

{"sheet":"10. Klimatilpasning","index":9,"n_rows":16,"n_cols":4,"rows_kept":16,"cut":false,"hidden":false,"merged":[[3,1,3,3],[12,1,12,3],[6,1,6,3]]}
[{"$f":"'9. Miljø- og servicemål'!A1","v":"Arwos Spildevand A/S"}]
[]
[]
[null,"Fane 10. Medfinansiering af klimatilpasningsprojekter"]
[]
[]
[null,"Tillæg for budgetterede omkostninger til medfinansiering af klimatilpasningsprojekter i 2015"]
[null,null,0,"kr."]
[null,"Tillæg i alt",{"$f":" SUM(C8:C8)","v":0},"kr."]
[]
[]
[]
[null,"Korrektion af tillæg for faktiske omkostninger til medfinansiering af klimatilpasningsprojekter i 2013"]
[null,"Selskabets faktiske driftsomkostninger til klimatilpasningsprojekter i 2013, jf. reguleringsregnskabet",0,"kr."]
[null,"Tillæg for budgetterede driftsomkostninger til klimatilpasningsprojekter i prisloft 2013",0,"kr."]
[null,"Korrektion af tillæg for budgetterede omkostninger til klimatilpasningsprojekter i 2013",{"$f":"C14-C15","v":0},"kr."]

{"sheet":"11. Nettofinansielle poster","index":10,"n_rows":16,"n_cols":4,"rows_kept":16,"cut":false,"hidden":false,"merged":[[3,1,3,3]]}
[{"$f":"'10. Klimatilpasning'!A1","v":"Arwos Spildevand A/S"}]
[]
[]
[null,"Fane 11. Nettofinansielle poster"]
[]
[null,"Tillæg for budgetterede nettofinansielle poster i 2015"]
[null,"Budgetterede renteudgifter og gebyrer i 2015",2736000,"kr."]
[null,"Budgetterede renteindtægter i 2015",0,"kr."]
[null,"Tillæg/fradrag i alt",{"$f":"C7-C8","v":2736000},"kr."]
[]
[]
[]
[null,"Korrektion af tillæg for faktiske nettofinansielle poster i 2013"]
[null,"Selskabets faktiske nettofinansielle poster i 2013, jf. reguleringsregnskabet",1496270,"kr."]
[null,"Tillæg for budgetterede nettofinansielle poster i prisloft 2013",340000,"kr."]
[null,"Korrektion af tillæg for budgetterede nettofinansielle poster i 2013",{"$f":"C14-C15","v":1156270},"kr."]

{"sheet":"12. Over- eller underdækning","index":11,"n_rows":11,"n_cols":4,"rows_kept":11,"cut":false,"hidden":true,"merged":[[3,1,3,3]]}
[{"$f":"'11. Nettofinansielle poster'!A1","v":"Arwos Spildevand A/S"}]
[]
[]
[null,"Fane 12. Over- eller underdækning til og med 2010"]
[]
[null,"Tillæg/fradrag for over- eller underdækning til og med 2010"]
[null,"Opgjort over- eller underdækning per 31. december 2010",0,"kr."]
[null,"Heraf beløb indregnet i prislofterne for 2012 - 2014",0,"kr."]
[null,"Endnu ikke indregnet over- eller underdækning",{"$f":"C7-C8","v":0},"kr."]
[null,"Resterende indregningsperiode (fastsat i prisloftet for 2012)",0,"år"]
[null,"Tillæg/fradrag i alt",{"$f":"IF(C7=0,0,C9/C10)","v":0},"kr."]

{"sheet":"13. Kontrol med indtægtsrammen","index":12,"n_rows":38,"n_cols":12,"rows_kept":38,"cut":false,"hidden":false,"merged":[[3,1,3,5],[30,1,30,4],[5,1,5,5]]}
[{"$f":"'12. Over- eller underdækning'!A1","v":"Arwos Spildevand A/S"}]
[]
[]
[null,"Fane 13. Korrektion for overholdelse af indtægtsrammen i prisloftet for 2013"]
[]
[null,"Samlet opgørelse vedrørende overholdelse af indtægtsrammen i prisloftet for 2013"]
[null,"Indtægtsramme i prisloftet for 2013",null,null,135518197.06372499,"kr."]
[null,"Ikke anvendt likviditet vedrørende investeringer i 2013"]
[null,"Tillæg for historiske investeringer ",74226178.249142632,"kr."]
[null,"Tillæg for gennemførte investeringer i 2011",1404033,"kr."]
[null,"Korrektion af tillæg for planlagte investeringer i 2011",1042855,"kr."]
[null,"Tillæg for planlagte investeringer i 2012 og 2013",1779373,"kr."]
[null,"Indtægter fra tilslutningsbidrag",4441800,"kr."]
[null,"Indtægter fra salg af anlægsaktiver",0,"kr."]
[null,"Erstatninger vedr. anlægsaktiver mv.",0,"kr."]
[null,"Ekstraordinær effektiviseringsgevinst anvendt til investeringer",14400355.750857361,"kr."]
[null,"Udgifter til investeringer",-97294595,"kr."]
[null,"Ikke anvendt likviditet vedr. investeringer i alt",{"$f":"SUM(C9:C17)","v":0},"kr.",{"$f":"IF(C18<0,0,-C18)","v":0},"kr."]
[null,"Ekstraordinære effektiviseringsgevinster anvendt til takstnedsættelse"]
[null,"Ekstraordinær effektiviseringsgevinst anvendt til takstnedsættelse",6014663,"kr.",{"$f":"-C20","v":-6014663},"kr."]
[null,"Korrektion af ikke opkrævet tillæg fra 2011 i prisloft 2013"]
[null,"Korrektion af ikke opkrævet tillæg fra 2011 i prisloft 2013",0,"kr.",{"$f":"-C22","v":0},"kr."]
[null,"Indtægter fra primære aktiviteter mv."]
[null,"Indtægter fra kubikmetertakster, faste takster, særbidrag, målergebyrer samt andre takster og gebyrer",87434640,"kr."]
[null,"Andre indtægter i prisloftåret, som selskabet har opnået i forbindelse med eller som følge af selskabets primære aktiviteter",0,"kr."]
[null,"Indtægter fra primære aktiviteter mv. i alt",{"$f":"SUM(C24:C25)","v":87434640},"kr.",{"$f":"-C26","v":-87434640},"kr."]
[null,"Tillæg/fradrag i prisloftet for 2015 i alt",null,null,{"$f":"E7+E18+E20+E22+E26","v":42068894.063724995},"kr."]
[]
[]
[]
[null,"Oversigt over ekstraordinære effektiviseringsgevinster"]
[]
[null,null,2012,null,2013,null,2014,null,2015,null,2016]
[null,"Indhentet ekstraordinær effektiviseringsgevinst",6461258,"kr.",13953760.814582385,"kr.",null,"kr.",null,"kr.",null,"kr."]
[null,"Gevinst anvendt til investeringer",0,"kr.",14400355.750857361,"kr.",null,"kr.",null,"kr.",null,"kr."]
[null,"Gevinst anvendt til takstnedsættelse",0,"kr.",6014663,"kr.",null,"kr.",null,"kr.",null,"kr."]
[null,"Korrektion for  effektiviseringsgevinst der ikke er anvendt inden 4 år",0,"kr.",0,"kr.",null,"kr.",null,"kr.",{"$f":"IF(C38>SUM(E35:I36),C38-SUM(E35:I36),0)*-1","v":0},"kr."]
[null,"Resterende gevinst",{"$f":"C34-C35-C36","v":6461258},"kr.",{"$f":"C38+E34-E35-E36","v":6.3725024461746216E-2},"kr.",{"$f":"E38+G34-G35-G36","v":6.3725024461746216E-2},"kr.",{"$f":"G38+I34-I35-I36","v":6.3725024461746216E-2},"kr.",{"$f":"K34-K35-K36+K37+I38","v":6.3725024461746216E-2},"kr."]

{"sheet":"Ark1","index":13,"n_rows":17,"n_cols":14,"rows_kept":17,"cut":false,"hidden":false,"merged":[]}
[]
[]
[]
[]
[]
[]
[]
[]
[]
[]
[]
[]
[]
[]
[null,null,null,null,null,null,null,null,null,null,null,null,null,13953760.814582385]
[null,null,null,null,null,null,null,null,null,null,null,null,null,446594.936274976]
[null,null,null,null,null,null,null,null,null,null,null,null,null,{"$f":"SUM(N15:N16)","v":14400355.750857361}]